[Event "CCC-IM 2022"]
[Site "Ballerup"]
[Date "2022.05.28"]
[Round "6.1"]
[White "Ahlander, Bjorn"]
[Black "Brynell, Stellan"]
[Result "1/2-1/2"]
[ECO "D41"]
[WhiteElo "2375"]
[BlackElo "2401"]
[Annotator "TA"]
[PlyCount "49"]
[EventDate "2022.05.25"]
[EventType "tourn"]
[EventCountry "DEN"]
[SourceTitle "playchess.com"]
[Source "ChessBase"]
[SourceQuality "1"]
[TimeControl "5400+30"]

{[%evp 23,49,-14,-2,-37,0,-39,0,0,0,-29,-35,-43,-39,-51,-45,-84,-56,-89,-85,-80,-95,-100,0,-103,0,-99,0,-1695]} 1. d4 {[%emt 0:00:03]} Nf6 {[%emt 0:00:07]} 2. c4 {[%emt 0:00:04]} e6 {[%emt 0:00:07]} 3. Nc3 {[%emt 0:00:04]} d5 {[%emt 0:00:07]} 4. Nf3 {[%emt 0:00:10]} c5 {[%emt 0:00:15]} 5. cxd5 {[%emt 0:00:24]} Nxd5 {[%emt 0:00:06]} 6. e3 {[%emt 0:00:54]} cxd4 {[%emt 0:03:33]} 7. exd4 {[%emt 0:00:03]} Nxc3 {[%emt 0:00:08]} 8. bxc3 {[%emt 0:00:06]} Qc7 {[%emt 0:00:07]} 9. Bd2 {[%emt 0:00:55]} Nd7 {[%emt 0:04:42]} 10. Bd3 {[%emt 0:00:28]} b6 {[%emt 0:04:53]} 11. O-O {[%emt 0:02:03] 11.Ng5 deserves study.} Bb7 {[%emt 0:00:13]} 12. Re1 {[%emt 0:00:38]} Bd6 {[%emt 0:02:53]} 13. Ng5 {[%emt 0:11:00] [#] Strongly threatening Qh5. B22: Sicilian: 2 c3.} Nf6 {[%emt 0:02:37] Prevents Qh5.} 14. Bb5+ {[%emt 0:14:48]} Bc6 {[%emt 0:07:40]} 15. Qf3 {[%emt 0:01:25]} Rc8 {[%emt 0:00:16] [#]} (15... Bxh2+ $2 16. Kh1 Bxb5 17. Qxa8+ Qb8 18. Qf3 $18) 16. Bxc6+ $146 {[%emt 0:08:08]} (16. Nxe6 $5 fxe6 17. Rxe6+ Kd8 18. Bxc6 Qxc6 19. Bf4 $14) ({Predecessor:} 16. Nxe6 fxe6 17. Rxe6+ Kd8 18. Bxc6 Qxc6 19. Bf4 Qxf3 20. Rxd6+ Ke7 21. gxf3 Rxc3 {½-½ (33) Vachier Lagrave,M (2788)-Pichot,A (2532) Chess.com INT 2016}) 16... Qxc6 {[%emt 0:00:07]} 17. Ne4 {[%emt 0:01:17]} Nxe4 {[%emt 0:11:30]} 18. Rxe4 {[%emt 0:00:03]} O-O {[%emt 0:01:19]} 19. Rae1 {[%emt 0:00:58][%cal Od2h6]} Rfe8 {[%emt 0:12:29]} 20. Qh5 {[%emt 0:05:32]} g6 {[%emt 0:01:34]} 21. Qg5 {[%emt 0:01:07]} Be7 {[%emt 0:00:49]} 22. Qe5 {[%emt 0:08:51]} Bd6 {[%emt 0:00:45]} 23. Qg5 {[%emt 0:00:48]} Be7 {[%emt 0:00:07]} 24. Qe5 {[%emt 0:00:17]} Bd6 {[%emt 0:00:05]} (24... Bf8 $17) 25. Qd5 $2 {[%mdl 40960] Weighted Error Value: White=0.12 (very precise) /Black=0.31. An unexpected result.} 1/2-1/2

[Event "CCC-IM 2022"]
[Site "Ballerup"]
[Date "2022.05.28"]
[Round "6.2"]
[White "Nielsen, Thomas Bach"]
[Black "Kistrup, Nicolai"]
[Result "0-1"]
[ECO "D38"]
[WhiteElo "2189"]
[BlackElo "2306"]
[Annotator "TA"]
[PlyCount "102"]
[EventDate "2022.05.25"]
[EventType "tourn"]
[EventCountry "DEN"]
[SourceTitle "playchess.com"]
[Source "ChessBase"]
[SourceQuality "1"]
[TimeControl "5400+30"]

{[%evp 22,102,0,-12,0,-79,-82,-79,-85,-77,-66,-75,-71,-76,-77,-77,-73,-73,-64,-64,-66,-71,-54,-60,-60,-74,-58,-67,-52,-81,-47,-86,-56,-63,-54,-121,-105,-110,-106,-124,-122,-136,-121,-167,-77,-149,-141,-150,-142,-158,-161,-158,-155,-155,0,-156,-152,-183,-148,-154,-102,-156,-128,-128,-128,-128,-128,-128,-113,-113,-113,-138,-138,-138,-138,-732,-730,-729,-699,-690,-663,-524,-480]} 1. d4 {[%emt 0:00:04]} Nf6 {[%emt 0:00:07]} 2. c4 {[%emt 0:00:06]} e6 {[%emt 0:00:11]} 3. Nf3 {[%emt 0:00:06]} d5 {[%emt 0:00:35]} 4. Nc3 {[%emt 0:01:00]} Bb4 {[%emt 0:00:29]} 5. cxd5 {[%emt 0:00:08]} exd5 {[%emt 0:01:25]} 6. Qa4+ {[%emt 0:00:09]} Nc6 {[%emt 0:01:14]} 7. Bg5 {[%emt 0:00:15]} h6 {[%emt 0:26:42]} 8. Bxf6 {[%emt 0:00:11]} Qxf6 {[%emt 0:00:13]} 9. e3 {[%emt 0:00:07]} O-O {[%emt 0:04:42]} 10. Be2 {[%emt 0:00:09]} a6 {[%emt 0:20:32]} 11. O-O {[%emt 0:00:24]} Be6 {[%emt 0:05:03]} 12. Rfc1 {[%emt 0:00:23]} Rfd8 {[%emt 0:03:51] [#] D38: Queen's Gambit Declined: Ragozin Defence (4 Nf3 Bb4).} 13. Ne5 $146 {[%emt 0:16:24]} (13. Bd3 $11) ({Predecessor:} 13. Qd1 Bd6 14. Na4 Ne7 15. Nc5 Bc8 16. b4 Ng6 17. Ne1 Qe7 18. g3 Nf8 19. a4 {0-1 (43) Friedel,J (2524)-Movsesian,S (2677) Reykjavik 2017}) 13... Bxc3 $17 {[%emt 0:04:39]} 14. Nxc6 {[%emt 0:01:39]} Bxb2 {[%emt 0:05:08] Black is better.} 15. Nxd8 {[%emt 0:00:43]} Rxd8 {[%emt 0:01:32]} 16. Rab1 {[%emt 0:02:38]} Bxc1 {[%emt 0:01:18]} 17. Rxc1 {[%emt 0:00:02]} c6 {[%emt 0:00:23]} 18. Qb4 {[%emt 0:05:59]} Bc8 {[%emt 0:00:26]} 19. a4 {[%emt 0:02:22]} Qd6 {[%emt 0:09:25]} 20. Qxd6 {[%emt 0:14:34]} Rxd6 $15 {[%emt 0:00:05][%mdl 4096] Endgame KRB-KRB} 21. a5 {[%emt 0:00:06]} Kf8 {[%emt 0:00:06]} 22. Kf1 {[%emt 0:00:18]} Ke7 {[%emt 0:00:29]} 23. Ke1 {[%emt 0:00:23]} Kd8 {[%emt 0:00:39]} 24. Kd2 {[%emt 0:02:39]} Kc7 {[%emt 0:00:21]} 25. Kc3 {[%emt 0:01:12]} Bf5 {[%emt 0:03:03]} 26. Kb4 {[%emt 0:04:32]} Be4 {[%emt 0:01:25]} 27. f3 {[%emt 0:07:16]} Bh7 {[%emt 0:01:01]} 28. Kc5 {[%emt 0:02:13]} (28. Kc3 $15) 28... Re6 $17 {[%emt 0:00:15]} 29. Rc3 {[%emt 0:00:31]} Bb1 {[%emt 0:01:51]} 30. Bf1 {[%emt 0:11:53]} g5 {[%emt 0:01:22]} 31. Rc1 {[%emt 0:03:06]} Bg6 {[%emt 0:00:41]} 32. Rc3 {[%emt 0:01:41]} (32. Re1 $17 {was called for.}) 32... Bh5 {[%emt 0:04:41]} (32... h5 $19 {is more deadly.} 33. Kb4 Re8) 33. g4 {[%emt 0:03:51]} (33. e4 $142) 33... Bg6 {[%emt 0:00:07]} 34. Bg2 {[%emt 0:00:08]} f5 {[%emt 0:01:00]} 35. gxf5 {[%emt 0:01:45]} Bxf5 {[%emt 0:00:05]} 36. h3 {[%emt 0:01:10]} Bg6 {[%emt 0:00:44]} 37. Bh1 {[%emt 0:03:46]} Bf5 {[%emt 0:00:31]} 38. Bg2 {[%emt 0:00:39]} h5 {[%emt 0:00:15]} 39. Bf1 {[%emt 0:04:25]} Re8 {[%emt 0:00:22]} 40. Bg2 {[%emt 0:00:07]} Re7 {[%emt 0:00:03] Black is more active.} (40... h4 $142 41. Kb4 Kd6) 41. Bf1 {[%emt 0:00:23]} (41. e4 $142 Be6 42. e5) 41... g4 {[%emt 0:00:40]} 42. hxg4 {[%emt 0:02:48]} hxg4 {[%emt 0:00:04]} 43. fxg4 {[%emt 0:00:03]} Bxg4 {[%emt 0:00:05]} 44. Bg2 {[%emt 0:00:24]} Bf5 {[%emt 0:00:03]} 45. Kb4 {[%emt 0:00:25]} Kd6 {[%emt 0:00:29]} 46. Kb3 {[%emt 0:00:38]} Rg7 {[%emt 0:00:04]} 47. Bf1 {[%emt 0:00:42]} Rg1 {[%emt 0:00:37]} 48. Bd3 {[%emt 0:00:37][%mdl 8192] Now White is beyond hope.} (48. Be2 $17) 48... Bxd3 $19 {[%emt 0:01:36] Black is clearly winning.} 49. Rxd3 {[%emt 0:00:01]} Rb1+ {[%emt 0:01:38]} 50. Kc2 {[%emt 0:00:16] [#]} Ra1 {[%emt 0:00:20]} 51. Rb3 {[%emt 0:00:03]} Kc7 {[%emt 0:00:08] Weighted Error Value: White=0.35/Black=0.14 (very precise)} 0-1

[Event "CCC-IM 2022"]
[Site "Ballerup"]
[Date "2022.05.28"]
[Round "6.3"]
[White "Jacobsen, Mikkel Manosri"]
[Black "Sahl, Bjarke"]
[Result "1-0"]
[ECO "A06"]
[WhiteElo "2251"]
[BlackElo "2312"]
[Annotator "TA"]
[PlyCount "107"]
[EventDate "2022.05.25"]
[EventType "tourn"]
[EventCountry "DEN"]
[SourceTitle "playchess.com"]
[Source "ChessBase"]
[SourceQuality "1"]
[TimeControl "5400+30"]

{[%evp 9,107,16,26,0,0,2,0,0,15,13,12,-18,0,0,2,0,9,-18,-12,-22,-17,-27,-23,-31,-31,-24,-14,-17,-6,-11,-6,-35,-33,-54,-6,-95,0,0,0,-27,-25,-20,-9,-8,0,0,0,0,21,17,18,23,21,16,27,27,25,28,35,75,172,178,238,216,172,172,230,184,185,250,435,398,547,546,542,515,508,497,1072,1001,1235,1109,5418,6095,29950,12838,29949,2258,1585,204,527,567,328,144,29972,29974,29981,29978,29981,29967]} 1. Nf3 {[%emt 0:00:04]} d5 {[%emt 0:01:13]} 2. b3 {[%emt 0:01:19]} Nf6 {[%emt 0:01:09]} 3. e3 {[%emt 0:00:14]} c6 {[%emt 0:00:30]} 4. Bb2 {[%emt 0:00:14]} Bf5 {[%emt 0:02:29]} 5. Be2 {[%emt 0:06:55]} h6 {[%emt 0:00:09]} 6. O-O {[%emt 0:01:29] A06: Réti Opening: 1 Nf3 d5.} (6. Bxf6 $5 gxf6 7. O-O $11) 6... Nbd7 {[%emt 0:00:20]} 7. c4 {[%emt 0:01:20]} e6 {[%emt 0:00:07]} 8. Nc3 {[%emt 0:02:39] The position is equal.} Bh7 {[%emt 0:02:04]} 9. Rc1 {[%emt 0:02:18] [#]} Be7 $146 {[%emt 0:03:51]} ({Predecessor:} 9... Bd6 10. d4 O-O 11. Ne1 Qe7 12. c5 Bc7 13. f4 Ne4 14. b4 f6 15. Bd3 Nxc3 16. Bxc3 {½-½ (65) Ernst,W-Elsas,H Essen 1947}) 10. cxd5 {[%emt 0:00:19]} cxd5 {[%emt 0:06:18]} 11. d4 {[%emt 0:06:43]} O-O {[%emt 0:01:27]} 12. Ne5 {[%emt 0:01:26]} Qa5 {[%emt 0:05:59]} 13. Nxd7 {[%emt 0:06:17]} Nxd7 {[%emt 0:01:46]} 14. a3 {[%emt 0:00:18]} Rfc8 {[%emt 0:01:43]} (14... Bxa3 $2 15. Ra1 $18) 15. Na4 {[%emt 0:08:33][%cal Oa4c5]} Qd8 {[%emt 0:00:34]} 16. Qd2 {[%emt 0:01:23]} Nf6 {[%emt 0:01:47]} 17. f3 {[%emt 0:00:28] Prevents Ne4.} Ne8 {[%emt 0:02:28]} 18. Nc5 {[%emt 0:07:25]} Nd6 {[%emt 0:00:10]} 19. g3 {[%emt 0:03:46]} Rc7 {[%emt 0:00:52]} 20. Kg2 {[%emt 0:01:14]} Rac8 {[%emt 0:01:54][%cal Oe6e5]} 21. a4 {[%emt 0:01:29]} Qf8 {[%emt 0:12:05]} (21... Bg5 $15) 22. g4 {[%emt 0:05:41]} (22. Nd3 $11) 22... Bg6 {[%emt 0:04:18]} (22... b6 $17 23. Nd3 f5) 23. h3 $11 {[%emt 0:01:09]} Qd8 {[%emt 0:05:26]} 24. Rfd1 {[%emt 0:02:20]} Bf8 {[%emt 0:00:56][%cal Oe6e5]} 25. Bd3 {[%emt 0:02:58]} Bxd3 {[%emt 0:00:55]} (25... Qg5 {looks sharper.} 26. Bxg6 Qxg6 27. Nd3 Nf5) 26. Nxd3 {[%emt 0:00:02]} Rxc1 {[%emt 0:00:52]} 27. Rxc1 {[%emt 0:00:02]} Rxc1 {[%emt 0:02:13]} 28. Qxc1 {[%emt 0:02:24]} Qc8 {[%emt 0:00:13]} 29. Qxc8 {[%emt 0:00:39]} Nxc8 {[%emt 0:00:05][%cal Bd6c8,Bc8e7,Be7c6][%mdl 4128] Endgame KBN-KBN} 30. e4 {[%emt 0:01:59]} Ne7 {[%emt 0:03:20]} 31. Bc3 {[%emt 0:06:31]} Nc6 {[%emt 0:12:46]} 32. b4 {[%emt 0:06:01]} a6 {[%emt 0:00:31]} 33. Nc5 {[%emt 0:01:12]} Bxc5 {[%emt 0:12:19]} 34. dxc5 {[%emt 0:00:15] KB-KN} f6 {[%emt 0:00:11] White stays focused until the end.} (34... d4 $16 35. Bd2 Kf8) 35. exd5 $18 {[%emt 0:04:58]} exd5 {[%emt 0:00:04]} 36. b5 {[%emt 0:00:43]} axb5 {[%emt 0:00:35]} 37. axb5 {[%emt 0:00:03]} Na7 {[%emt 0:00:26]} 38. c6 $1 {[%emt 0:00:05]} ({Worse is} 38. b6 Nc6 $11) 38... b6 {[%emt 0:00:06] [#]} 39. Bd4 $1 {[%emt 0:00:36]} Nxb5 $2 {[%emt 0:05:51]} (39... Nc8 40. f4 Kf7) 40. Bxb6 {[%emt 0:00:09]} Kf7 {[%emt 0:00:10] [#]} 41. c7 $1 {[%emt 0:03:51]} Nd6 {[%emt 0:00:04]} 42. Bc5 {[%emt 0:00:08]} Nc8 {[%emt 0:00:04]} 43. h4 {[%emt 0:00:17][%cal Bh3h4,Bh4h5][%mdl 32]} g6 {[%emt 0:02:05]} (43... Ke8 $142 44. h5 Kd7) 44. h5 {[%emt 0:03:08]} f5 {[%emt 0:00:41]} 45. gxf5 {[%emt 0:00:32]} gxh5 {[%emt 0:01:10]} 46. Kg3 {[%emt 0:00:30] White threatens Bd4 and mate.} Kf6 {[%emt 0:00:18]} 47. Kf4 {[%emt 0:00:06] Intending Bd4+ and mate.} h4 {[%emt 0:00:06]} 48. Bd4+ {[%emt 0:01:30]} Ke7 {[%emt 0:00:19]} 49. Ke5 $2 {[%emt 0:01:00]} (49. f6+ Ke6 50. Kg4) 49... h3 $2 {[%emt 0:00:49]} (49... Kd7 50. f6 (50. Kxd5 Ne7+ 51. Ke4 Kxc7 $16) 50... h3) 50. Bg1 {[%emt 0:00:21]} Kd7 {[%emt 0:03:22]} 51. f6 {[%emt 0:06:59]} (51. Kxd5 $18 {is the precise move to win. f6 is the strong threat.} Ne7+ 52. Ke5 (52. Ke4 Kxc7 53. f6 Ng6 $18) 52... Nc6+ 53. Kf6 Kxc7 54. Kg7) 51... Nd6 $2 {[%emt 0:02:27][%mdl 8192]} (51... d4 $16) 52. Kxd5 {[%emt 0:01:55] White mates.} Ne8 {[%emt 0:00:34]} 53. c8=Q+ {[%emt 0:01:11]} Kxc8 {[%emt 0:00:03]} 54. Ke6 {[%emt 0:00:09] Weighted Error Value: White=0.29 (precise) /Black=0.63} 1-0

[Event "CCC-IM 2022"]
[Site "Ballerup"]
[Date "2022.05.28"]
[Round "6.4"]
[White "Rostgaard, Tobias Valentin"]
[Black "Casper Yukun Liu"]
[Result "1-0"]
[ECO "C88"]
[WhiteElo "2339"]
[BlackElo "2218"]
[Annotator "TA"]
[PlyCount "161"]
[EventDate "2022.05.25"]
[EventType "tourn"]
[EventCountry "DEN"]
[SourceTitle "playchess.com"]
[Source "ChessBase"]
[SourceQuality "1"]
[TimeControl "5400+30"]

{[%evp 20,161,14,12,29,12,25,33,27,35,56,35,77,37,35,-31,-33,-38,0,-19,14,10,8,6,55,72,148,154,577,565,577,576,560,339,339,321,315,328,328,317,304,275,374,313,308,217,212,162,158,172,177,60,352,348,341,211,437,169,268,252,252,233,395,386,397,370,391,364,373,357,362,333,5169,4604,3931,2441,9843,5299,5368,3898,4747,4890,4890,4558,5057,0,1475,1458,1435,1522,1415,1042,962,48,40,38,40,36,36,14,14,14,14,14,14,10,10,0,0,0,0,0,0,0,0,0,8,8,8,8,14,14,36,30,30,30,36,36,29979,29980,29979,29980,29978,29972,29972,36,36,36,36,36,36,36,29994,29995]} 1. e4 {[%emt 0:01:14]} e5 {[%emt 0:01:11]} 2. Nf3 {[%emt 0:00:26]} Nc6 {[%emt 0:00:03]} 3. Bb5 {[%emt 0:00:30]} a6 {[%emt 0:02:16]} 4. Ba4 {[%emt 0:00:16]} Nf6 {[%emt 0:00:46]} 5. O-O {[%emt 0:00:37]} b5 {[%emt 0:00:37]} 6. Bb3 {[%emt 0:00:08]} Be7 {[%emt 0:02:22]} 7. Re1 {[%emt 0:01:13]} O-O {[%emt 0:00:10]} 8. a4 {[%emt 0:02:01]} Bb7 {[%emt 0:00:28]} 9. Nc3 {[%emt 0:00:30]} Na5 {[%emt 0:06:46]} 10. Ba2 {[%emt 0:01:31]} b4 {[%emt 0:05:27]} 11. Nd5 {[%emt 0:01:42]} Nxd5 {[%emt 0:07:31] C88: Closed Ruy Lopez: Anti-Marshall Systems.} (11... Re8 {feels hotter.} 12. d4 exd4 13. Qxd4 c5) 12. Bxd5 {[%emt 0:00:52]} Bxd5 {[%emt 0:12:38]} (12... c6 $5 {[%cal Rc6d5]} 13. Ba2 Qc7 $14) 13. exd5 {[%emt 0:00:08]} d6 {[%emt 0:00:12] White is slightly better.} 14. d4 {[%emt 0:03:03]} f6 {[%emt 0:00:26]} 15. Qd3 {[%emt 0:02:04] [#]} Qc8 $146 {[%emt 0:01:40]} ({Predecessor:} 15... Qd7 16. Bd2 Rfb8 17. b3 c5 18. dxc6 Qxc6 19. Nh4 Qd5 20. Nf5 Bf8 21. Re4 Nc6 {1-0 (73) Wirths,C (1884)-Eckert,M (1878) Nordrheinwestfalen 2013}) 16. Bd2 {[%emt 0:00:29]} Qb7 {[%emt 0:05:55]} 17. dxe5 {[%emt 0:15:55]} (17. Rad1 $14) 17... dxe5 $15 {[%emt 0:00:55]} 18. c4 {[%emt 0:04:50][%cal Of3d4]} Rad8 {[%emt 0:02:23]} (18... Rfd8 $5 {[%cal Rc7c6]}) 19. Nh4 {[%emt 0:04:04][%cal Bf3h4,Bh4f5,Bf5d6][%mdl 32]} c6 {[%emt 0:05:30][%cal Rc6d5]} 20. Nf5 $36 {[%emt 0:00:28][%mdl 2048] White is pushing.} cxd5 {[%emt 0:06:17]} 21. cxd5 {[%emt 0:00:37]} Bc5 {[%emt 0:00:23]} (21... Rf7 $11 {should be considered.}) 22. d6 $14 {[%emt 0:03:46] Threatens to win with Rac1.} g6 {[%emt 0:00:02]} (22... Rfe8 $142) 23. Rac1 $1 $16 {[%emt 0:00:54] White is more active.} Bxd6 $2 {[%emt 0:06:45]} (23... Bxf2+ $16 {is more resistant.} 24. Kxf2 gxf5) 24. Nxd6 $18 {[%emt 0:00:28]} Qb6 {[%emt 0:00:01]} 25. Qd5+ {[%emt 0:00:24]} Kg7 {[%emt 0:00:18] [#]} 26. Red1 $1 {[%emt 0:02:42]} Rxd6 {[%emt 0:02:24] [#]} 27. Qxd6 {[%emt 0:00:29][%mdl 512]} Qxd6 {[%emt 0:00:02] [#]} 28. Bh6+ $1 {[%emt 0:00:16][%mdl 576] Skewer, Discovered Attack} Kxh6 {[%emt 0:00:03]} 29. Rxd6 {[%emt 0:00:05][%mdl 4096] Endgame KRR-KRN} Nb3 {[%emt 0:00:11]} 30. Rcc6 {[%emt 0:01:13]} f5 {[%emt 0:07:19]} 31. h3 {[%emt 0:01:52]} a5 {[%emt 0:02:15]} 32. Rd3 {[%emt 0:01:23]} Nd4 {[%emt 0:00:07]} 33. Rc5 {[%emt 0:00:17]} Rd8 {[%emt 0:00:10] [#]} 34. Kf1 {[%emt 0:01:12] Against Ne2} (34. Rxa5 Ne2+ 35. Kf1 Rxd3 $11) 34... e4 {[%emt 0:00:04]} 35. Re3 {[%emt 0:04:43]} (35. Rd1 $18 Nb3 36. Rxd8 Nxc5 37. Rd5 Nxa4 38. b3 (38. Rxa5 Nxb2 39. Ke2 Kg5 $14)) 35... Ne6 $2 {[%emt 0:05:53][%mdl 8192]} (35... f4 $14 36. Re1 (36. Rxe4 Nb3 $14) 36... Nb3) 36. Rxa5 {[%emt 0:03:05]} Rd2 {[%emt 0:05:17]} 37. f3 {[%emt 0:02:17]} Nd4 $2 {[%emt 0:05:20]} (37... Rxb2 38. fxe4 f4) 38. fxe4 $2 {[%emt 0:03:23]} (38. Rd5) 38... Rxb2 {[%emt 0:03:39]} (38... f4 $142 39. Re1 Rxb2) 39. exf5 {[%emt 0:01:47]} b3 {[%emt 0:00:55] aiming for ...Rb1+.} 40. Ra6 {[%emt 0:01:28] And now f6 would win.} ({Not} 40. f6 $2 Rb1+ 41. Kf2 b2 $19) 40... Nxf5 {[%emt 0:01:19]} (40... Rc2) 41. Rd3 {[%emt 0:01:01]} Rb1+ {[%emt 0:00:36] [#]} 42. Kf2 $1 {[%emt 0:00:33]} b2 {[%emt 0:00:09][%cal Ob1f1] White must now prevent ...Rf1+!} 43. Rb6 {[%emt 0:00:12]} Ra1 {[%emt 0:00:29]} 44. Rxb2 {[%emt 0:00:10]} Rxa4 {[%emt 0:00:01]} 45. g4 {[%emt 0:00:30]} Rf4+ {[%emt 0:01:32]} (45... Nd4 46. Rb7 Ne6) 46. Rf3 {[%emt 0:00:59]} Rxf3+ {[%emt 0:00:05]} 47. Kxf3 {[%emt 0:00:04] KR-KN} Nh4+ {[%emt 0:01:40]} 48. Ke4 {[%emt 0:00:23]} g5 {[%emt 0:00:07]} 49. Rb6+ {[%emt 0:00:34]} Kg7 {[%emt 0:00:01]} 50. Ke5 {[%emt 0:00:55]} h6 {[%emt 0:00:01]} 51. Ke6 {[%emt 0:01:24]} Ng2 {[%emt 0:00:29]} 52. Ke5 {[%emt 0:01:04]} (52. Rb2 $142 Nh4 53. Rb6) 52... Nh4 $1 {[%emt 0:00:08]} 53. Rf6 {[%emt 0:01:45] Against Nf3+} Ng2 {[%emt 0:00:40]} 54. Kf5 {[%emt 0:01:13] Hoping for Rg6+.} Nh4+ {[%emt 0:00:10]} 55. Ke6 {[%emt 0:00:07]} Ng2 {[%emt 0:00:15]} 56. Ke7 $2 {[%emt 0:00:40]} (56. Rf7+ $18 Kg6 57. Rf6+ Kg7 58. Rf3) 56... Nf4 $14 {[%emt 0:01:36] ( -> ...Nd5+)} 57. Rf7+ {[%emt 0:00:07]} Kg6 $1 {[%emt 0:00:03]} 58. Kf8 {[%emt 0:00:41]} Nxh3 {[%emt 0:01:01]} 59. Kg8 {[%emt 0:01:40]} Nf4 {[%emt 0:00:06]} 60. Ra7 {[%emt 0:01:14] Ra6+ would kill now.} Kf6 $1 {[%emt 0:00:39]} 61. Ra6+ {[%emt 0:04:38]} Ke5 {[%emt 0:00:02]} 62. Rxh6 {[%emt 0:02:44]} Ke4 {[%emt 0:00:05]} 63. Rh1 {[%emt 0:01:40]} Kf3 {[%emt 0:00:01]} 64. Kg7 {[%emt 0:00:27]} Kxg4 {[%emt 0:00:05]} 65. Kh6 {[%emt 0:01:04]} Nh3 {[%emt 0:00:10]} 66. Ra1 {[%emt 0:00:42]} Kh4 {[%emt 0:01:11]} 67. Kg6 {[%emt 0:00:45]} g4 {[%emt 0:01:03]} 68. Kf5 {[%emt 0:00:07]} Nf2 {[%emt 0:00:34]} 69. Kf4 {[%emt 0:00:13]} g3 {[%emt 0:01:03]} 70. Kf3 {[%emt 0:00:17]} Kh3 {[%emt 0:00:16]} 71. Rg1 {[%emt 0:01:09]} Kh4 {[%emt 0:01:06]} 72. Rxg3 {[%emt 0:00:24]} Nd3 {[%emt 0:00:14]} 73. Rg4+ {[%emt 0:01:42]} Kh3 $2 {[%emt 0:01:09][%mdl 8192]} (73... Kh5 $14) 74. Re4 {[%emt 0:00:43]} Kh2 {[%emt 0:00:28]} 75. Re3 {[%emt 0:00:42]} Nc5 76. Kf2 {[%emt 0:00:22]} Nd7 {[%emt 0:00:33]} 77. Re7 $2 {[%emt 0:00:11]} (77. Re1 {mates} Kh3 78. Kf3 Kh4 79. Kf4 Kh3 80. Rd1 Nb6 81. Rd6 Nc8 82. Rc6) 77... Nf6 {[%emt 0:00:01]} 78. Re6 {[%emt 0:00:51]} Ng4+ $1 {[%emt 0:00:11]} 79. Kf3 {[%emt 0:01:10]} Kh3 {[%emt 0:00:30]} 80. Kf4 {[%emt 0:02:58]} Kh4 $2 {[%emt 0:00:14][%mdl 8192]} (80... Nh2 $14) 81. Rg6 {Weighted Error Value: White=0.68/Black=0.56} 1-0

[Event "CCC-IM 2022"]
[Site "Ballerup"]
[Date "2022.05.28"]
[Round "6.5"]
[White "Seegert, Kristian"]
[Black "Kenneskog, Theodor"]
[Result "0-1"]
[ECO "B90"]
[WhiteElo "2209"]
[BlackElo "2296"]
[Annotator "TA"]
[PlyCount "74"]
[EventDate "2022.05.25"]
[EventType "tourn"]
[EventCountry "DEN"]
[SourceTitle "playchess.com"]
[Source "ChessBase"]
[SourceQuality "1"]
[TimeControl "5400+30"]

{[%evp 19,74,-12,0,-35,0,-35,-18,-20,-24,-20,-20,-43,-10,-15,-18,-27,-34,-78,-41,-69,-67,-60,-64,-69,-43,-110,-100,-104,-104,-91,-75,-79,-62,-60,-59,-59,-59,-127,-110,-128,-83,-135,-134,-135,-119,-229,-234,-314,-309,-304,-305,-299,0,-977,-970,-1197,-1191]} 1. e4 {[%emt 0:07:01]} c5 {[%emt 0:00:05]} 2. Nf3 {[%emt 0:00:50]} d6 {[%emt 0:00:05]} 3. d4 {[%emt 0:00:30]} cxd4 {[%emt 0:00:08]} 4. Nxd4 {[%emt 0:00:11]} Nf6 {[%emt 0:00:03]} 5. Nc3 {[%emt 0:00:11]} a6 {[%emt 0:00:05]} 6. Be3 {[%emt 0:00:36]} e5 {[%emt 0:00:14]} 7. Nf3 {[%emt 0:00:21]} Be7 {[%emt 0:01:30]} 8. a4 {[%emt 0:04:56]} O-O {[%emt 0:03:59]} 9. Be2 {[%emt 0:00:23]} Be6 {[%emt 0:02:04]} 10. O-O {[%emt 0:01:54]} h6 {[%emt 0:01:42]} 11. a5 {[%emt 0:06:07] B92: Sicilian Najdorf: 6 Be2.} (11. Nd2) 11... Nbd7 {[%emt 0:00:09] [#]} (11... Nc6) (11... Nc6 $5 {[%cal Rc6a5]}) 12. Qd3 $146 {[%emt 0:19:56]} ({Predecessor:} 12. Nd2 Qc7 13. Bf3 Rfc8 14. Qe2 Qc6 15. Rfd1 Bd8 16. Ra3 Nf8 17. Rc1 N8h7 18. h4 Ne8 19. Nd5 Bxd5 20. exd5 Qd7 {0-1 (49) Zhu,J (2462)-Keymer,V (2591) chess24.com INT 2021}) 12... Rc8 {[%emt 0:00:21]} 13. Nd2 {[%emt 0:02:06] The position is equal.} Nc5 {[%emt 0:02:36]} 14. Bxc5 {[%emt 0:00:08]} Rxc5 {[%emt 0:00:08]} 15. Na4 {[%emt 0:08:12]} Rc6 {[%emt 0:13:43]} 16. Nb6 {[%emt 0:06:01]} Nd7 {[%emt 0:00:12]} 17. Nxd7 {[%emt 0:04:43]} Qxd7 {[%emt 0:00:14]} 18. Bf3 {[%emt 0:03:13]} Bg5 {[%emt 0:12:20]} (18... Qc7 $5 {[%cal Rc6c2]} 19. c3 Rc5 $17) 19. Rfd1 {[%emt 0:01:49]} Qc7 {[%emt 0:01:13]} 20. c3 {[%emt 0:14:26]} Rc5 {[%emt 0:00:49]} 21. Nf1 {[%emt 0:03:59]} Rd8 {[%emt 0:00:19]} 22. Ng3 {[%emt 0:01:34]} (22. g3 $15) 22... Rxa5 {[%emt 0:01:18] Black is more active.} 23. Rxa5 {[%emt 0:00:25]} Qxa5 {[%emt 0:00:02]} 24. Nf5 {[%emt 0:00:12]} g6 {[%emt 0:02:52]} 25. h4 {[%emt 0:03:53]} Bf6 {[%emt 0:10:15]} 26. Nxh6+ {[%emt 0:00:36]} Kg7 {[%emt 0:00:04]} 27. Ng4 {[%emt 0:01:10]} Bxh4 {[%emt 0:00:05]} 28. Ne3 {[%emt 0:02:54]} (28. Qd2 $1 $15 Bxg4 29. Bxg4) 28... Qb6 {[%emt 0:00:55]} 29. Qe2 {[%emt 0:01:57]} Qc5 {[%emt 0:05:14]} 30. Bg4 {[%emt 0:01:10]} ({White should try} 30. g3 Bg5 31. Nd5) 30... Bb3 $36 {[%emt 0:01:27][%mdl 2048] Black is in control.} 31. Re1 {[%emt 0:00:05]} Bg5 {[%emt 0:00:22]} 32. Nd5 {[%emt 0:02:42]} (32. Bf3 $17) 32... f5 $19 {[%emt 0:05:21]} 33. Bxf5 {[%emt 0:01:05] And now Qg4 would win.} Bxd5 {[%emt 0:00:13] A strong pair of Bishops.} ({And not} 33... gxf5 34. Qh5 Bd2 35. Re2 $11) 34. Qg4 {[%emt 0:00:20] [#]} Kf6 {[%emt 0:00:40] aiming for ...Bf7.} 35. Bxg6 {[%emt 0:01:10] Hoping for Qf5+.} Kxg6 {[%emt 0:13:00]} ({Black should play} 35... Be6 $19 36. Bf5 Qc8 37. Bxe6 Qxe6) 36. Re3 $2 {[%emt 0:00:01][%mdl 8192]} (36. Qf5+ $11 Kh6 37. Qh3+ Kg7 38. Qg4) 36... Qc8 {[%emt 0:00:30]} 37. Qg3 {[%emt 0:00:37]} Be6 {[%emt 0:00:41] Weighted Error Value: White=0.61/Black=0.24 (precise)} 0-1